Cogmind - Beta 10.2 @@@ ROGUE MODE // 2022.02.28 @ 23:22:08 Player: W_W Result: Destroyed by D-53 Grenadier with Mini Grenade Launcher Performance ------------- Evolutions (0) 0 Regions Visited (2) 400 Robots Destroyed (18) 90 Value Destroyed (103) 103 Prototype IDs (0) 0 Alien Tech Used (0) 0 Bonus (-148) -148 TOTAL SCORE: 445 Bonus ------- Friendly Fire -148 Cogmind --------- Core Integrity 0/250 Matter 290/300 Energy 95/125 System Corruption 6% Temperature Cool (0) Movement Flying (40) Location -10/Mines Parts ------- > --- POWER (1) -------- Light Ion Engine > --- PROPULSION (2) --- Flight Unit > --- UTILITY (2) ------ (None) > --- WEAPON (2) ------- (None) > --- INVENTORY (4) ---- Ion Engine Small Laser Mining Claw Peak State ------------ > --- POWER ------------ Ion Engine > --- PROPULSION ------- Compact Wheel Compact Wheel > --- UTILITY ---------- Small Storage Unit > --- WEAPON ----------- EM Pulse Gun Small Laser > --- INVENTORY -------- Ion Engine [Rating: 6] Favorites ----------- Power Ion Engine Engine Ion Engine Propulsion Flight Unit Leg Aluminum Leg Wheel Compact Wheel Flight Unit Flight Unit Utility Sensor Array Device Sensor Array Storage Small Storage Unit Protection Light Armor Plating Weapon Small Laser Energy Gun Small Laser Ballistic Gun Light Assault Rifle Launcher Grenade Launcher Build | -11 -10 -10 ------- Run | Scr Mat Min Slots Evolved . | . . . Power . | . . . Propulsion . | . . . Utility . | . . . Weapon . | . . . Parts Attached 25 | 6 7 12 Power 2 | 1 . 1 Engine 2 | 1 . 1 Core . | . . . Reactor . | . . . Propulsion 12 | 2 3 7 Treads . | . . . Leg 2 | . . 2 Wheel 4 | 2 . 2 Hover . | . . . Flight 6 | . 3 3 Utility 4 | 1 1 2 Device 1 | . 1 . Storage 2 | 1 . 1 Processor . | . . . Hackware . | . . . Protection 1 | . . 1 Artifact . | . . . Weapon 7 | 2 3 2 Energy Gun 5 | 2 2 1 Energy Cannon . | . . . Ballistic Gun 1 | . 1 . Ballistic Cannon . | . . . Launcher 1 | . . 1 Special Weapon . | . . . Impact Weapon . | . . . Slashing Weapon . | . . . Piercing Weapon . | . . . Special Melee Weapon . | . . . Unidentified Prototypes . | . . . Parts Lost 8 | . . 8 Power 1 | . . 1 Propulsion 3 | . . 3 Utility 2 | . . 2 Weapon 2 | . . 2 Highest Loss Streak 6 | . . 6 Average Slot Usage (%) 76 | . 83 68 Engine 13 | . 14 13 Leg 8 | . . 16 Wheel 2 | . 3 1 Flight 16 | . 24 7 Device 12 | . 10 13 Storage 1 | . 2 . Protection 2 | . . 5 Energy Gun 11 | . 17 4 Ballistic Gun 7 | . 10 3 Naked Turns . | . . . Heaviest Build 21 | 12 12 21 Greatest Support 32 | 32 32 20 Greatest Overweight (x) 2 | . 2 1 Average Overweight (x) . | . . . Largest Inventory Capacity 10 | 6 6 10 Average Capacity 4 | 5 4 4 Most Carried 6 | 2 6 4 Average Carried 3 | 1 3 3 Final Capacity 6 | 6 4 4 Final Carried 4 | 2 4 3 Class Distribution -------------------- 100% | Mutant Dominant Class ---------------- Mutant | -10/Materials Mutant | -10/Mines Resources | -11 -10 -10 ----------- Run | Scr Mat Min Matter Collected 480 | 260 30 190 Remotely . | . . . Salvage Created 516 | 389 42 85 Parts 57 | 42 9 6 Haulers Intercepted . | . . . Recyclers Shooed . | . . . Parts Field Recycled . | . . . Retrieved Matter . | . . . Parts Self-Destructed . | . . . Prevented . | . . . Kills | -11 -10 -10 ------- Run | Scr Mat Min Combat Hostiles Destroyed 6 | . 3 3 Guns 4 | . 3 1 AOE 2 | . . 2 Classes Destroyed 6 | 3 1 2 Worker 4 | 4 . . Tunneler 9 | 8 . 1 Recycler 1 | 1 . . Swarmer 3 | . 3 . Grunt 1 | . . 1 Assembled 3 | . . 3 Best Kill Streak 4 | 4 3 2 Combat Bots Only 3 | . 3 2 Max Kills in Single Turn 1 | 1 1 1 Gunslinging . | . . . Exploded 1 | . . 1 Melee . | . . . Uniques/NPCs Destroyed . | . . . Combat | -11 -10 -10 -------- Run | Scr Mat Min Damage Taken 748 | . 62 686 Core 263 | . . 263 Absorbed by Shields . | . . . Core Remaining (%) 100 | 100 . . Volleys Fired 48 | 22 6 20 Largest 2 | 2 2 2 Hottest 80 | 80 80 60 Shots Fired 85 | 44 12 29 Gun 81 | 44 12 25 Cannon . | . . . Launcher 4 | . . 4 Special . | . . . Kinetic 10 | . . 10 Thermal 43 | 22 6 15 Explosive 4 | . . 4 Electromagnetic 28 | 22 6 . Robot Hit Streak 8 | 4 8 4 Robot Miss Streak 2 | 2 1 2 Penetration Max . | . . . Secondary Targets . | . . . Shots Hit Robots 46 | 22 8 16 Core Hits 28 | 14 3 11 Critical Hits . | . . . Critical Kills . | . . . Critical Parts Destroyed . | . . . Melee Attacks . | . . . Impact . | . . . Slashing . | . . . Piercing . | . . . Sneak Attacks . | . . . Combat Hostiles . | . . . Follow-up Attacks . | . . . Damage Inflicted 684 | 283 83 318 Guns 500 | 283 83 134 Cannons . | . . . Explosions 178 | . . 178 Melee . | . . . Ramming 6 | . . 6 Kinetic 25 | . . 25 Thermal 237 | 96 32 109 Explosive 178 | . . 178 Electromagnetic 238 | 187 51 . Impact . | . . . Slashing . | . . . Piercing . | . . . Highest Corruption 6 | . . 6 Average Corruption 5 | . . 5 Corruption Purged . | . . . Effects 12 | . . 12 Message Errors 2 | . . 2 Matter Fused 2 | . . 2 Heat Flow Errors 1 | . . 1 Energy Discharges 1 | . . 1 Data Loss (minor) 1 | . . 1 Data Loss (major) 2 | . . 2 Targeting Errors 3 | . . 3 Overload Shots . | . . . Overflow Damage 26 | . . 26 Projectiles . | . . . Explosions 26 | . . 26 Melee . | . . . Knockbacks . | . . . Impact . | . . . Kinetic . | . . . Secondary . | . . . Self-Inflicted Damage 86 | . . 86 Shots 3 | . . 3 Rammed 3 | . . 3 Targets Rammed 4 | . . 4 Kicked 1 | . . 1 Crushed . | . . . Highest Temperature 144 | 144 108 88 Average Temperature 39 | 42 55 28 Received Heat Transfer . | . . . Siege Activations . | . . . Robots Corrupted . | . . . Combat Hostiles . | . . . Parts Fried . | . . . Impact Corruptions . | . . . Robots Melted . | . . . Combat Hostiles . | . . . Parts Melted . | . . . Heat Transferred 550 | 225 75 250 Parts Sabotaged . | . . . Parts Stolen . | . . . Parts Stripped . | . . . Power Chain Reactions . | . . . Missiles Intercepted . | . . . Alert | -11 -10 -10 ------- Run | Scr Mat Min Peak Influence 132 | 65 132 15 Initial 42 | . 42 . Average 18 | 31 24 1 Maximum Alert Level . | . . . Low Security (%) 100 | 100 100 100 Level 1 . | . . . Level 2 . | . . . Level 3 . | . . . Level 4 . | . . . Level 5 . | . . . High Security . | . . . Max Security . | . . . Squads Dispatched 1 | . 1 . Investigation . | . . . Extermination . | . . . Reinforcement 1 | . 1 . Assault . | . . . Garrison . | . . . Intercept . | . . . Construction Impeded . | . . . Haulers Reinforced . | . . . Stealth | -11 -10 -10 --------- Run | Scr Mat Min Distress Signals . | . . . Communications Jammed . | . . . Distress Signals . | . . . Times Spotted 13 | . 7 6 Peak Tracking Total 4 | . 4 3 Tactical Retreats 1 | . 1 . Traps | -11 -10 -10 ------- Run | Scr Mat Min Traps Triggered . | . . . Indirectly . | . . . Trap Hack Attempts . | . . . Triggered . | . . . Disarmed . | . . . Reprogrammed . | . . . Reused . | . . . Traps Extracted . | . . . Installed . | . . . Triggered . | . . . Machines | -11 -10 -10 ---------- Run | Scr Mat Min Machines Disabled . | . . . Max in Single Turn . | . . . Machines Sabotaged . | . . . Garrisons Compromised . | . . . Overloaded Fab Kills . | . . . Fab Network Shutdowns . | . . . Hacking | -11 -10 -10 --------- Run | Scr Mat Min Machines Accessed 4 | . 4 . Terminals 4 | . 4 . Fabricators . | . . . Repair Stations . | . . . Recycling Units . | . . . Scanalyzers . | . . . Garrison Access . | . . . Total Hacks 24 | . 24 . Successful 12 | . 12 . Failed 12 | . 12 . Catastrophic 2 | . 2 . Database Lockouts . | . . . Manual 18 | . 18 . Terminals 24 | . 24 . Fabricators . | . . . Repair Stations . | . . . Recycling Units . | . . . Scanalyzers . | . . . Garrison Access . | . . . Terminal Hacks 4 | . 4 . Terminal Index 1 | . 1 . Unreport Threat 2 | . 2 . Zone Layout 1 | . 1 . Fabricator Hacks . | . . . Repair Station Hacks . | . . . Recycling Unit Hacks . | . . . Scanalyzer . | . . . Garrison Access Hacks . | . . . Unauthorized Hacks 8 | . 8 . Terminals 8 | . 8 . Track 1 | . 1 . Assimilate 4 | . 4 . Botnet 3 | . 3 . Fabricators . | . . . Repair Stations . | . . . Recycling Units . | . . . Scanalyzers . | . . . Garrison Access . | . . . Data Cores Recovered . | . . . Used . | . . . Hacking Detections 4 | . 4 . Full Trace Events . | . . . Feedback Events . | . . . Feedback Blocked . | . . . Robot Schematics Acquired . | . . . Robots Built . | . . . Matter . | . . . Time . | . . . Total Robot Build Rating . | . . . Part Schematics Acquired . | . . . Parts Built . | . . . Matter . | . . . Time . | . . . Total Part Build Rating . | . . . Parts Repaired . | . . . Time . | . . . Parts Recycled . | . . . Recycled Matter . | . . . Retrieved Matter . | . . . Retrieved Components . | . . . Parts Scanalyzed . | . . . Part Schematics Acquired . | . . . Parts Damaged . | . . . Bothacking | -11 -10 -10 ------------ Run | Scr Mat Min Used RIF Installer . | . . . Robots Hacked . | . . . Non-combat . | . . . Combat . | . . . Robot Hacks Applied . | . . . Relay Couplers Released . | . . . Robots Rewired . | . . . Allies Hacked . | . . . Hacks Repelled . | . . . Allies | -11 -10 -10 -------- Run | Scr Mat Min Total Allies 3 | . . 3 Largest Group 3 | . . 3 Highest-Rated Group 40 | . . 40 Highest-Rated Ally 16 | . . 16 Total Orders . | . . . Ally Attacks 10 | . . 10 Total Damage 89 | . . 89 Kills 2 | . . 2 Allies Corrupted . | . . . Allies Melted . | . . . Intel | -11 -10 -10 ------- Run | Scr Mat Min Robot Analysis Total . | . . . Derelict Logs Recovered . | . . . Drone Launches . | . . . Drone Recoveries . | . . . Exploration | -11 -10 -10 ------------- Run | Scr Mat Min Turns Passed 1174 | 333 442 399 Spaces Moved 881 | 103 390 388 Core 9 | 3 . 6 Treads . | . . . Legs 190 | . . 190 Wheels 151 | 100 28 23 Hover . | . . . Flight 531 | . 362 169 Fastest Speed 37 | 50 37 37 Average Speed 66 | 98 43 81 Slowest Speed 200 | 100 200 120 Overloaded Moves . | . . . Propulsion Burnouts . | . . . Robots Hopped 6 | . 3 3 Cave-ins Triggered . | . . . Exploration Rate (%) 31 | 4 35 56 Regions Visited 2 Branch Regions 1 Pre-discovered Areas . | . . . Known Exits Taken . | . . . Unknown Exits Taken 2 | 1 1 . Scrap Searched 1 | . . 1 Spaces Dug . | . . . Terrain Destroyed 27 | . . 27 Melee . | . . . Projectile . | . . . AOE 27 | . . 27 Terrain Rammed . | . . . Walls Destroyed . | . . . Machines Disabled . | . . . Actions | -11 -10 -10 --------- Run | Scr Mat Min Total 1375 | 287 649 439 Wait 400 | 155 236 9 Move 867 | 102 383 382 Hop 6 | . 3 3 Pick Up 9 | 2 6 1 Fast Attach 17 | 6 3 8 Attach 3 | . . 3 Detach 2 | . . 2 Swap 5 | . 4 1 Drop 14 | . 8 6 Fire 48 | 22 6 20 Melee . | . . . Ram . | . . . Kick 4 | . . 4 Crush . | . . . Escape Stasis . | . . . Rewire . | . . . Trap . | . . . Miscellaneous . | . . . Route ------- -11/Scrapyard -10/Materials -10/Mines (discovered 1 exit: [*Mat]) History --------- Turn | Location | Event 2 | -11/Scrapyard | Met Revision 17 24 | -11/Scrapyard | Discovered new exit (range 15) 334 | -11/Scrapyard | Entered Materials 335 | -10/Materials | Build established: Mutant 437 | -10/Materials | Discovered new exit (range 12) 776 | -10/Materials | Entered Mines 780 | -10/Mines | Assisted by bots powering up and referring to "LRC-V3" 785 | -10/Mines | Assembled infested the area 798 | -10/Mines | Met a Derelict bent on vengeance 914 | -10/Mines | Lost 6 parts (1p3n2w) 1023 | -10/Mines | Discovered new exit (range 13) 1154 | -10/Mines | Core integrity fell below 50% 1171 | -10/Mines | Core integrity fell below 20% 1175 | -10/Mines | Destroyed by D-53 Grenadier with Mini Grenade Launcher Last Messages --------------- 00992_ Found 34 Matter. 00994_ I0-CEC(g): "TASTE MY VENGEANCE!" 00995_ Acquired Lgt. Armor Plating. 00996_ Acquired 10 matter. 00999_ K-01 Serf collects debris. 01001_ H :NE4E7 01003_ K-01 Serf collects debris. 01020_ System corrupted: Heat flow error (+103). 01023_ Slammed into K-01 Serf. 01023_ Destabilizing: System corrupted (+1). 01023_ EXIT=FOUND 01048_ System corrupted: Substantial component data lost. 01087_ I0-CEC(g): "VENGEANCE!" 01091_ System corrupted: Energy discharge (-32). 01107_ HTCMV 2BDTP>CDDSEKZEUWB 01145_ System corrupted: Substantial component data lost. 01165_ Sensor Array destroyed. 01167_ Lgt. Armor Plating destroyed. 01174_ The unstable cave ceiling collapses. 01174_ Dropped Aluminum Leg. Map ----- +----------------------------------------------------+ | | | | | | | | | ?????????????????????????????????? | | ????????????#####????????????????? | | ???????????## ##???????????????? | | ???????????# #???????????????? | | ???????????# #????????????#### | | ???????????# #???????????## | | ???????????## ##???????##### | | ???????????## ##??????## """ | | ???????##### #????### """ | | ??????## #???## """ | | ??????# #???# ## % | | ??????# ## #???# #### | | ??????## ### #??## ##??## | | ???????# #?# #?## #????### | | ???????## ##?# ### ##??????## | | ????????# #??# ##????????## | | ????????# #??# #??????????# | | ????????# ##?##### ##??????????? | | ???????## #??## %###???????????? | | ??????## #### #?????????????? | | ??????# # ## ##????????????? | | ??????# @ # #### # #?????? | | ??????# = ????? | | ??????# #??????? | | ???#### % ????? | | ??## ##### ????? | | ??# ##?????# ## ????? | | ??# #???????? ?????? | | ??## ##??????? ????? | | ???#### ###???????????? | | ??????## dd ####????????? | | ???????## #????????? | | ????????# < ##???????? | | ????????## #???????? | | ?????????# ## #?#####? | | ?????????# ### ### #? | | ?????????# #?## ## #? | | ?????????# #??### ####### ##? | | ???####### #????######??## #### | | ???# %%% #?????## ##??# | | ???#%########????## ##?# | | ???# ##?????????## #?######## | | ??## ##???????## ######???? | | ??# ######?## ## ##???? | | ??# ### % # #???? | | ??## % #???? | +----------------------------------------------------+ Best States ------------- Heat Dissipation 25 Energy Generation 10 Energy Capacity 250 Matter Stores 300 Matter Capacity 300 Sight Range 16 Robot Scan Range 10 Terrain Scan Density 10 Armor Coverage 150 Evasion (%) 62 Item Schematics ----------------- None Robot Schematics ------------------ None Fabricated ------------ Nothing Alien Tech Used ----------------- None Achievements -------------- None Challenges ------------ None Game ------ Seed CloakingSmallImmobilizer Manual? 0 Play Time 00:13:11 Cumulative 151.5 hours Start 2022.02.28 @ 23:09:55 End 2022.02.28 @ 23:22:08 Sessions 1 Manual Loads 0 Difficulty Rogue Special Mode None Game No. 112 Rogue 112 Adventurer 0 Explorer 0 Win Type - Total 0 Types 0/0/0/0/0/0/0/0/0 Lore% 47 Gallery% 58 Achievement% 37 Wizard Run 0 Options --------- ASCII 0 Keyboard 0 Movement Numpad Keybinds 0 Fullscreen 1 Font 18/SmallcapsGlow Map View 76x50 Tactical HUD 1 Map Filters NONE Filters NONE Steam 1 RUN: cc820481-e5c2-4453-b988-87afc83875a3